Cogmind - Beta 16.1 @@@ ROGUE MODE // 2026.04.13 @ 22:31:46 Player: Parkagirl Result: Destroyed by Y-45 Defender with Heavy Assault Rifle Performance ------------- Evolutions (2) 1000 Regions Visited (4) 800 Robots Destroyed (24) 120 Value Destroyed (763) 763 Prototype IDs (4) 80 Alien Tech Used (0) 0 Bonus (0) 0 TOTAL SCORE: 2763 Bonus ------- None Cogmind --------- Core Integrity 0/550 Matter 116/400 Energy 8/200 System Corruption 5% Temperature Cool (0) Movement Rolling (100) Location -8/Materials Parts ------- > --- POWER (1) -------- Subdweller Power Source > --- PROPULSION (4) --- Armored Huge Wheel Armored Huge Wheel > --- UTILITY (4) ------ Medium Matter Pod Improved Signal Interpreter Terrain Scan Processor Improved Shield Generator > --- WEAPON (2) ------- Battle Rifle Katana > --- INVENTORY (5) ---- Mini Grenade Launcher Peak State ------------ > --- POWER ------------ Subdweller Power Source > --- PROPULSION ------- Armored Huge Wheel Armored Huge Wheel > --- UTILITY ---------- Medium Matter Pod Improved Signal Interpreter Terrain Scan Processor Improved Shield Generator > --- WEAPON ----------- Battle Rifle Katana > --- INVENTORY -------- Mini Grenade Launcher Scrap Shield Fragment [Rating: 33] Favorites ----------- Power Light Ion Engine Engine Light Ion Engine Propulsion Aluminum Leg Treads Light Treads Leg Aluminum Leg Wheel Subdweller Monowheel Hover Unit Hover Unit Flight Unit Cesium-ion Thruster Utility Seismic Detector Device Seismic Detector Storage Small Storage Unit Processor Improved Signal Interpreter Hackware System Shield Weapon Assault Rifle Energy Gun Subdweller Laser Ballistic Gun Assault Rifle Launcher Mini Grenade Launcher Special Weapon Enhanced Flamer Slashing Weapon Katana Build | -11 -10 -10 -10 -8 ------- Run | Yrd Mat Min Sub Mat Slots Evolved 4 | . . . . 4 Power . | . . . . . Propulsion 2 | . . . . 2 Utility 2 | . . . . 2 Weapon . | . . . . . Parts Attached 43 | 8 10 2 4 19 Power 6 | 1 1 . 1 3 Engine 6 | 1 1 . 1 3 Core . | . . . . . Reactor . | . . . . . Propulsion 15 | 3 4 . . 8 Treads 2 | 2 . . . . Leg 6 | . 2 . . 4 Wheel 4 | 1 . . . 3 Hover 2 | . 2 . . . Flight 1 | . . . . 1 Utility 14 | 2 4 1 1 6 Device 7 | 1 3 . 1 2 Storage 3 | 1 . 1 . 1 Processor 3 | . 1 . . 2 Hackware 1 | . . . . 1 Protection . | . . . . . Artifact . | . . . . . Weapon 8 | 2 1 1 2 2 Energy Gun 2 | 1 . . 1 . Energy Cannon . | . . . . . Ballistic Gun 3 | 1 1 . . 1 Ballistic Cannon . | . . . . . Launcher 1 | . . 1 . . Special Weapon 1 | . . . 1 . Impact Weapon . | . . . . . Slashing Weapon 1 | . . . . 1 Piercing Weapon . | . . . . . Special Melee Weapon . | . . . . . Unidentified Prototypes . | . . . . . Corrupted Parts 1 | . . . . 1 System Corruption 5 | . . . . 5 Parts Lost 18 | . 1 . 4 13 Power 3 | . . . . 3 Propulsion 8 | . . . 2 6 Utility 3 | . 1 . . 2 Weapon 4 | . . . 2 2 Highest Loss Streak 5 | . 1 . 4 5 To Critical Strikes . | . . . . . Average Backups 4 | 2 6 8 3 2 Power 1 | . 2 2 . 1 Propulsion . | 1 1 2 . . Utility . | . . 2 . . Weapon 1 | . 1 1 1 1 Tool/Special . | . . . . . Unused Backups 7 | . 5 . 2 . Power 2 | . 1 . 1 . Propulsion . | . . . . . Utility 1 | . 1 . . . Weapon 2 | . 2 . . . Tool/Special 2 | . 1 . 1 . Average Slot Usage (%) 83 | . 97 100 75 76 Engine 12 | . 14 14 12 8 Treads 2 | . 12 . . . Leg 17 | . 14 . 23 16 Wheel 1 | . . . . 5 Hover 3 | . 1 28 1 . Device 9 | . 10 . 11 9 Storage 5 | . 14 14 1 2 Processor 4 | . . 14 1 13 Hackware 1 | . . . . 4 Energy Gun 3 | . 3 . 3 4 Ballistic Gun 9 | . 24 26 1 3 Launcher 5 | . . 1 11 3 Special Weapon 2 | . . . 5 1 Peak Build Rating 33 | 7 10 10 10 33 Average Rating 9 | 4 7 9 7 16 On Entrance 7 | . 7 9 9 10 Avg Prop Armor Cover (%) 4 | . . . . 4 Naked Turns 74 | . . . 74 . Heaviest Build 17 | 13 14 17 17 15 Greatest Support 56 | 40 40 12 20 56 Greatest Overweight (x) 4 | . 1 1 4 2 Average Overweight (x) . | . . . . . Largest Inventory Capacity 10 | 8 8 10 10 5 Average Capacity 6 | 7 8 8 5 5 Most Carried 8 | 5 8 8 8 5 Average Carried 4 | 2 6 7 3 3 Final Capacity 10 | 8 8 10 5 5 Final Carried 8 | 5 8 8 5 1 Class Distribution -------------------- 84% | Mutant 15% | Scavenger-Mutant Dominant Class ---------------- Mutant | -10/Materials Scavenger-Mutant | -10/Mines Mutant | -10/Subcaves Mutant | -8/Materials Resources | -11 -10 -10 -10 -8 ----------- Run | Yrd Mat Min Sub Mat Matter Collected 898 | 296 112 152 88 250 Remotely 134 | 134 . . . . Salvage Created 566 | 122 143 16 96 189 Parts 32 | 6 10 2 5 9 Haulers Intercepted . | . . . . . Recyclers Shooed 3 | 1 2 . . . Parts Field Recycled . | . . . . . Retrieved Matter . | . . . . . Parts Self-Destructed 13 | . . . 13 . Prevented . | . . . . . Parts Restored . | . . . . . Kills | -11 -10 -10 -10 -8 ------- Run | Yrd Mat Min Sub Mat Combat Hostiles Destroyed 18 | . 3 3 5 7 Melee 2 | . . . . 2 Guns 3 | . 3 . . . Cannons 1 | . . . . 1 AOE 12 | . . 3 5 4 Classes Destroyed 8 | 3 2 1 1 1 Worker 3 | 2 . . . 1 Tunneler 1 | 1 . . . . Recycler 1 | 1 . . . . Watcher 1 | . 1 . . . Swarmer 3 | . . 3 . . Grunt 11 | . 3 . 2 6 Duelist 1 | . . . . 1 Subdweller 3 | . . . 3 . Best Kill Streak 3 | 2 2 3 3 3 Combat Bots Only 3 | . 2 3 3 3 Max Kills in Single Turn 2 | 2 1 2 1 1 Gunslinging . | . . . . . Exploded 2 | . . 2 1 1 Melee 1 | . . . . 1 Uniques/NPCs Destroyed . | . . . . . Combat | -11 -10 -10 -10 -8 -------- Run | Yrd Mat Min Sub Mat Hostile Shots Fired 176 | . 33 8 34 101 Missed 57 | . 12 4 8 33 Hits 119 | . 21 4 26 68 Melee 9 | . . . . 9 Projectile 110 | . 21 4 26 59 AOE 2 | . . . . 2 Critical Strikes 7 | . 1 . . 6 Damage Taken 2169 | 2 298 37 534 1298 Core 770 | . 61 . 147 562 Absorbed by Shields 12 | . . . . 12 Core Remaining (%) 58 | 100 . . 16 . Volleys Fired 57 | 6 18 4 8 21 Largest 2 | 2 2 2 1 2 Hottest 110 | 70 40 50 30 110 Shots Fired 96 | 12 36 8 8 32 Gun 70 | 12 36 6 . 16 Cannon . | . . . . . Launcher 22 | . . 2 8 12 Special 4 | . . . . 4 Kinetic 62 | 6 36 6 . 14 Thermal 12 | 6 . . . 6 Explosive 22 | . . 2 8 12 Electromagnetic . | . . . . . Robot Hit Streak 9 | 6 9 3 4 9 Robot Miss Streak 2 | 1 2 1 1 2 Penetration Max . | . . . . . Secondary Targets . | . . . . . Shots Hit Robots 58 | 8 23 5 1 21 Core Hits 46 | 5 9 4 11 17 Critical Kills 2 | 1 1 . . . Critical Parts Destroyed . | . . . . . Critical Strikes 3 | 1 1 . . 1 Burn 1 | . . . . 1 Destroy 2 | 1 1 . . . Melee Attacks 5 | . . . . 5 Impact . | . . . . . Slashing 5 | . . . . 5 Piercing . | . . . . . Sneak Attacks . | . . . . . Combat Hostiles . | . . . . . Follow-up Attacks . | . . . . . Damage Inflicted 2110 | 120 277 238 505 970 Guns 563 | 113 277 36 . 137 Cannons . | . . . . . Explosions 1364 | . . 202 505 657 Melee 124 | . . . . 124 Ramming 13 | 7 . . . 6 Kinetic 458 | 50 277 36 . 95 Thermal 151 | 63 . . . 88 Explosive 1364 | . . 202 505 657 Electromagnetic . | . . . . . Impact . | . . . . . Slashing 124 | . . . . 124 Piercing . | . . . . . Highest Corruption 5 | . 1 1 1 5 Average Corruption 1 | . 1 1 1 5 Corruption Purged . | . . . . . Corruption Blocked . | . . . . . Effects 19 | . 5 1 9 4 Message Errors 6 | . 2 1 2 1 Matter Fused 4 | . 1 . 3 . Heat Flow Errors 2 | . 1 . 1 . Energy Discharges 3 | . . . 2 1 Parts Fused 1 | . . . . 1 Data Loss (minor) 1 | . . . 1 . Data Loss (major) 1 | . 1 . . . Misfires 1 | . . . . 1 Overload Shots . | . . . . . Overflow Damage 85 | . . 35 . 50 Projectiles . | . . . . . Explosions 60 | . . 35 . 25 Melee 25 | . . . . 25 Knockbacks . | . . . . . Impact . | . . . . . Kinetic . | . . . . . Secondary . | . . . . . Self-Inflicted Damage 37 | 2 . . . 35 Shots 1 | . . . . 1 Rammed 9 | 3 2 . . 4 Targets Rammed 9 | 3 2 . . 4 Kicked . | . . . . . Crushed . | . . . . . Highest Temperature 204 | 27 204 1 93 167 Average Temperature 46 | 11 49 1 53 60 Received Heat Transfer 576 | . 186 12 93 285 Siege Activations . | . . . . . Martial Activations . | . . . . . Shielding Activations . | . . . . . Robots Disrupted 1 | . . . . 1 Combat Hostiles 1 | . . . . 1 Robots Corrupted . | . . . . . Combat Hostiles . | . . . . . Parts Fried . | . . . . . Impact Corruptions . | . . . . . Robots Melted . | . . . . . Combat Hostiles . | . . . . . Parts Melted . | . . . . . Heat Transferred 715 | 185 . . . 530 Parts Sabotaged . | . . . . . Parts Stolen . | . . . . . Parts Stripped . | . . . . . Power Chain Reactions . | . . . . . Alert | -11 -10 -10 -10 -8 ------- Run | Yrd Mat Min Sub Mat Maximum Alert Level . | . . . . . Low Security (%) 100 | 100 100 100 . 100 Level 1 . | . . . . . Level 2 . | . . . . . Level 3 . | . . . . . Level 4 . | . . . . . Level 5 . | . . . . . High Security . | . . . . . Max Security . | . . . . . Peak Influence 110 | 10 50 87 . 110 Initial 19 | . 6 1 . 19 Average 25 | 2 10 48 . 39 Influence Increases 544 | 20 108 86 50 280 Destroy 0b10 Robot/C 300 | . 60 60 40 140 Destroy 0b10 Robot/NC 30 | 20 5 . . 5 Destroy Leader 62 | . 22 10 10 20 Successful Hack 12 | . 5 . . 7 Disable Machine 60 | . . . . 60 Destroy Structure 65 | . 1 16 . 48 Lose Combat Pursuer 15 | . 15 . . . Influence Decreases 544 | 10 113 84 19 318 Entered New Map 31 | . 4 4 4 19 Time Decay 417 | 10 109 80 15 203 Lost Part 96 | . . . . 96 Squads Dispatched 1 | . 1 . . . Investigation 1 | . 1 . . . Extermination . | . . . . . Reinforcement . | . . . . . Assault . | . . . . . Garrison . | . . . . . Intercept . | . . . . . Searches Triggered . | . . . . . Construction Impeded . | . . . . . Haulers Reinforced . | . . . . . Active Scanning Responses . | . . . . . Cargo Convoy Interrupts . | . . . . . Stealth | -11 -10 -10 -10 -8 --------- Run | Yrd Mat Min Sub Mat Distress Signals 1 | . 1 . . . Communications Jammed . | . . . . . Distress Signals . | . . . . . Times Spotted 39 | . 9 8 7 15 Peak Tracking Total 7 | . 4 3 2 7 Tactical Retreats 2 | . 1 . 1 . Traps | -11 -10 -10 -10 -8 ------- Run | Yrd Mat Min Sub Mat Traps Triggered . | . . . . . Indirectly . | . . . . . Trap Hack Attempts . | . . . . . Triggered . | . . . . . Disarmed . | . . . . . Reprogrammed . | . . . . . Reused . | . . . . . Traps Extracted . | . . . . . Installed . | . . . . . Triggered . | . . . . . Machines | -11 -10 -10 -10 -8 ---------- Run | Yrd Mat Min Sub Mat Machines Disabled 4 | . . . . 4 Max in Single Turn 3 | . . . . 3 Machines Repaired . | . . . . . Machines Dismantled . | . . . . . Machines Sabotaged . | . . . . . Overloaded Fab Kills . | . . . . . Hacking | -11 -10 -10 -10 -8 --------- Run | Yrd Mat Min Sub Mat Machines Accessed 7 | . 4 . 1 2 Terminals 5 | . 3 . . 2 Fabricators . | . . . . . Repair Stations 1 | . 1 . . . Recycling Units . | . . . . . Scanalyzers . | . . . . . Garrison Access . | . . . . . Total Hacks 19 | . 12 . 3 4 Successful 7 | . 2 . 3 2 Failed 12 | . 10 . . 2 Catastrophic 2 | . 2 . . . Database Lockouts . | . . . . . Manual . | . . . . . Terminals 14 | . 10 . . 4 Fabricators . | . . . . . Repair Stations 2 | . 2 . . . Recycling Units . | . . . . . Scanalyzers . | . . . . . Garrison Access . | . . . . . Terminal Hacks 7 | . 2 . 3 2 Record 3 | . . . 3 . Prototype ID Bank 2 | . 1 . . 1 Recall Investigation 1 | . . . . 1 Hauler Manifests 1 | . 1 . . . Fabricator Hacks . | . . . . . Repair Station Hacks . | . . . . . Recycling Unit Hacks . | . . . . . Scanalyzer . | . . . . . Garrison Access Hacks . | . . . . . Unauthorized Hacks . | . . . . . Terminals . | . . . . . Fabricators . | . . . . . Repair Stations . | . . . . . Recycling Units . | . . . . . Scanalyzers . | . . . . . Garrison Access . | . . . . . Data Cores Recovered . | . . . . . Used . | . . . . . Hacking Detections 6 | . 4 . . 2 Full Trace Events 2 | . 2 . . . Feedback Events 1 | . 1 . . . Corruption 1 | . 1 . . . Feedback Blocked . | . . . . . Robot Schematics Acquired . | . . . . . Robots Built . | . . . . . Authchips . | . . . . . Time . | . . . . . Total Robot Build Rating . | . . . . . Part Schematics Acquired . | . . . . . Parts Built . | . . . . . Authchips . | . . . . . Time . | . . . . . Total Part Build Rating . | . . . . . Part Studies Acquired . | . . . . . Parts Repaired . | . . . . . Time . | . . . . . Parts Recycled . | . . . . . Recycled Matter . | . . . . . Retrieved Matter . | . . . . . Retrieved Components . | . . . . . Parts Scanalyzed . | . . . . . Part Schematics Acquired . | . . . . . Parts Damaged . | . . . . . Bothacking | -11 -10 -10 -10 -8 ------------ Run | Yrd Mat Min Sub Mat Used RIF Installer . | . . . . . Robots Hacked . | . . . . . Non-combat . | . . . . . Combat . | . . . . . Robot Hacks Applied . | . . . . . Relay Couplers Released . | . . . . . Fabnet Peak Effective % . | . . . . . Robots Rewired . | . . . . . Allies Hacked . | . . . . . Hacks Repelled . | . . . . . Allies | -11 -10 -10 -10 -8 -------- Run | Yrd Mat Min Sub Mat Total Allies 1 | . . 1 . . Largest Group 1 | . . 1 1 . Highest-Rated Group 31 | . . 31 31 . Highest-Rated Ally 31 | . . 31 31 . Total Orders . | . . . . . Ally Attacks 6 | . . 4 2 . Total Damage 83 | . . 83 . . Kills . | . . . . . Allies Corrupted . | . . . . . Allies Melted . | . . . . . Intel | -11 -10 -10 -10 -8 ------- Run | Yrd Mat Min Sub Mat Active Infowar (turns) 1687 | . 257 166 840 424 Optics 269 | . 27 166 76 . Sensors 169 | . 169 . . . Terrain 30 | . . . . 30 Seismic 1188 | . . . 764 424 ECM 61 | . 61 . . . Robot Analysis Total . | . . . . . Derelict Logs Recovered 2 | . . 1 1 . Drone Launches . | . . . . . Drone Recoveries . | . . . . . Exploration | -11 -10 -10 -10 -8 ------------- Run | Yrd Mat Min Sub Mat Turns Passed 2192 | 138 504 166 917 467 Spaces Moved 1452 | 68 317 206 565 296 Core 174 | 5 . . 151 18 Treads 163 | 57 106 . . . Legs 753 | . 167 . 361 225 Wheels 26 | 6 . . . 20 Hover 303 | . 44 206 53 . Flight 33 | . . . . 33 Fastest Speed 35 | 50 56 56 50 35 Average Speed 108 | 146 124 72 103 119 Slowest Speed 250 | 160 160 116 250 190 Overloaded Moves . | . . . . . Propulsion Burnouts . | . . . . . Robots Hopped 2 | . . . . 2 Potential Cave-ins . | . . . . . Cave-ins Triggered . | . . . . . Exploration Rate (%) 27 | 5 34 42 23 32 Regions Visited 4 Branch Regions 2 Pre-discovered Areas 1 | . . 1 . . Known Exits Taken . | . . . . . Unknown Exits Taken 4 | 1 1 1 1 . Scrap Searched 4 | . . 1 3 . Spaces Dug . | . . . . . Terrain Destroyed 124 | . . 26 46 52 Melee . | . . . . . Projectile . | . . . . . AOE 124 | . . 26 46 52 Terrain Rammed . | . . . . . Walls Destroyed . | . . . . . Machines Disabled . | . . . . . Actions | -11 -10 -10 -10 -8 --------- Run | Yrd Mat Min Sub Mat Total 1948 | 90 390 215 891 362 Wait 331 | . 22 . 306 3 Move 1444 | 67 316 205 564 292 Hop 2 | . . . . 2 Pick Up 23 | 5 11 1 5 1 Fast Attach 27 | 8 3 . 1 15 Attach 17 | . 1 1 6 9 Detach 7 | . . . 1 6 Swap 11 | . 6 2 . 3 Drop 15 | 1 11 2 . 1 Fire 57 | 6 18 4 8 21 Melee 5 | . . . . 5 Ram 6 | 1 1 . . 4 Kick . | . . . . . Crush 3 | 2 1 . . . Escape Stasis . | . . . . . Rewire . | . . . . . Trap . | . . . . . Miscellaneous . | . . . . . Route ------- -11/Scrapyard -10/Materials -10/Mines (discovered 2 exits: [*Mat] / *Sub) -10/Subcaves -8/Materials (discovered 2 exits: Fac / Sto) History --------- Turn | Location | Event 8 | -11/Scrapyard | Discovered new exit (range 15) 139 | -11/Scrapyard | Entered Materials 317 | -10/Materials | Build established: Mutant 571 | -10/Materials | Discovered new exit (range 15) 643 | -10/Materials | Entered Mines 675 | -10/Mines | Escorted by a lone wolf Derelict 689 | -10/Mines | Met a Derelict bent on vengeance 717 | -10/Mines | Learned location of Storage (-8) 727 | -10/Mines | Discovered new exit (range 14) 775 | -10/Mines | Learned 4 Materials zone layouts 788 | -10/Mines | Discovered new exit (range 10) 809 | -10/Mines | Entered Subcaves 809 | -10/Subcaves | Accompanied by 1 ally 885 | -10/Subcaves | Released all parts (3) 888 | -10/Subcaves | Core integrity fell below 50% 894 | -10/Subcaves | A swath of the cavern ceiling suddenly collapsed 909 | -10/Subcaves | A swath of the cavern ceiling suddenly collapsed 910 | -10/Subcaves | Lost 4 parts (2n2w) 936 | -10/Subcaves | Learned Materials security intel 1015 | -10/Subcaves | Visited Clippyterm 1018 | -10/Subcaves | Learned Factory stockpile data 1302 | -10/Subcaves | Shifting Twisted Machinery released Battle Rifle 1303 | -10/Subcaves | Shifting Twisted Machinery released Sub. Beam Cannon 1682 | -10/Subcaves | Ambushed by Subdweller buried in earth 1683 | -10/Subcaves | Core integrity fell below 20% 1707 | -10/Subcaves | Discovered new exit (range 13) 1726 | -10/Subcaves | Entered Materials 1726 | -8/Materials | Evolved 4 slots: Propulsion x2, Utility x2 1727 | -8/Materials | Identified exit to Factory 1727 | -8/Materials | Identified exit to Storage 2054 | -8/Materials | Core integrity fell below 50% 2105 | -8/Materials | Lost 4 parts (1p2n1u) 2152 | -8/Materials | Core integrity fell below 20% 2193 | -8/Materials | Destroyed by Y-45 Defender with Heavy Assault Rifle Last Messages --------------- 02149_ K-01 Serf collects debris. 02150_ Lgt. Ion Engine destroyed. 02150_ Seismic Detector destroyed. 02151_ K-01 Serf collects debris. 02151_ Penetrated by Slug. 02159_ Slug penetrates Wall. 02160_ Acquired Cesium-ion Thruster. 02171_ Lgt. Ion Engine destroyed. 02172_ Penetrated by Slug. 02173_ System corrupted: Cesium-ion Thruster fused. 02173_ K-01 Serf collects debris. 02175_ Slug penetrates Wall. 02176_ K-01 Serf collects debris. 02179_ Acquired Arm. Huge Wheel. 02181_ Discarded Cesium-ion Thruster. 02182_ Acquired Arm. Huge Wheel. 02185_ Acquired Imp. Shield Generator. 02189_ Dropped Scrap Shield Fragment. 02193_ Penetrated by Slug. Map ----- +----------------------------------------------------+ | ???? ???????????????????????????????? # # # | | #??? ????????????????????????????????"" # # # | | ???#? ???????????????????????????????"" # + # | | ?#??? ???????????????????????????????"" # # # | | ????????????????????????????????????? # # # | | #????????????????????????????????????###### # + | | ??????????????????????????????????????????# # # | | ???????###########????????????????????????###### # | | ???????# / #?????????????????????????????# # | | ???????# #?????????????????????????????# # | | ???????# """ #?????????????????????????????# # | | ???????# """ #?????????????????????######### # | | ???????#"" """ #######???????????????# ## # | | ???????#"T # #???????????????# """ ## # | | ???????#"" # #?????????????### "T" ## # | | " = ???# # " ????????????? # ## # | | #######/##### ??????????????### ## # | | #+## # # #?# ????????????????# ## # | | #??# #??????????????######+#### # | | #??# u #####??????????????????????? | | " #??# !!#??????????????????????? | | #??# !&#??????????????????????? | | #??# #??????????????????????? | | #### t ==#??????????????????????? | | !%= g Y !!#??????????????????????? | | w h !@#??????????????????????? | | a #####??????????????????????? | | #??????????????????????????? | | #??????????????????????????? | | #########+######## #??????????????????????????? | | #??????? ???????# #??????????????????????????? | | #??????? ???????# #??????????????????????????? | | #???????""???????# #??????????????????????????? | | ????????????????# #??????????????????????????? | | ##???????????????# #??????????????????????????? | | ##????????????????? #??????????????????????????? | | #?????????????????? #??????????????????????????? | | ^ ??????????????????? ???????????????????????????? | | ? ??????????????????? ???????????????????????????? | | ?????????????????????????????????????????????????? | | ?????????????????????????????????????????????????? | | ?????????????????????????????????????????????????? | | ?????????????????????????????????????????????????? | | ?????????????????????????????????????????????????? | | # #?????????????????????????????????????? | | # #?????????????????????????????????????? | | # #?????????????????????????????????????? | | # #?????????????????????????????????????? | | + #?????????????????????????????????????? | | # #?????????????????????????????????????? | +----------------------------------------------------+ Best States ------------- Heat Dissipation 39 Energy Generation 15 Energy Capacity 200 Matter Stores 300 Matter Capacity 400 Sight Range 18 Robot Scan Range 14 Terrain Scan Range 16 Terrain Scan Density 85 ECM Strength 1 Evasion (%) 63 Recoil Reduction 2 Defensive Hacking 10 Item Schematics ----------------- None Robot Schematics ------------------ None Fabricated ------------ Nothing Repaired ---------- Nothing Studied --------- None Alien Tech Used ----------------- None Achievements -------------- None Challenges ------------ None Game ------ Seed WeightCoolingCharge Manual? 0 Play Time 00:29:54 Cumulative 18.0 hours Start 2026.04.13 @ 22:02:05 End 2026.04.13 @ 22:31:46 Sessions 1 Manual Loads 0 Difficulty Rogue Special Mode None Game No. 34 Rogue 34 Adventurer 0 Explorer 0 Win Type - Total 0 Types 0/0/0/0/0/0/0/0/0/0 Lore% 20 Gallery% 21 Achievement% 17 Wizard Run 0 Options --------- Layout 1 ASCII 0 Keyboard 0 Movement Vi Keybinds 0 Fullscreen 1 Font 24/Smallcaps Map View 50x40 Zoom Use 0% Tactical HUD 1 Map Filters NONE Filters NONE Steam 1 RUN: d6b120aa-e25e-4d62-afbd-202856e137c9